bitfinex-derivatives/quotes_BTCF0:USTF0_20250915
["timestamp","ask_amount","ask_price","bid_price","bid_amount"]
[1757977852043,0.29256731,115370.0,115360.0,1.82511835]
[1757977852349,0.02081731,115370.0,115360.0,1.82511835]
[1757977852542,0.02081731,115370.0,115360.0,1.71588719]
[1757977855252,0.01981731,115370.0,115360.0,1.71488719]
[1757977855450,0.01681731,115370.0,115360.0,1.71488719]
[1757977856448,0.01681731,115370.0,115360.0,1.8238437]
[1757977858455,0.01681731,115370.0,115360.0,1.0385637]
[1757977858649,0.01681731,115370.0,115360.0,1.8237237]
[1757977860458,0.01681731,115370.0,115360.0,1.0385637]
[1757977860956,0.01681731,115370.0,115360.0,3.4880437]
[1757977861256,0.01681731,115370.0,115360.0,2.7028837]
[1757977861448,0.01681731,115370.0,115360.0,3.4880037]
[1757977862757,0.01681731,115370.0,115360.0,2.7028837]
[1757977863059,0.01681731,115370.0,115360.0,3.4880037]
[1757977866558,0.01681731,115370.0,115360.0,3.37904719]
[1757977868060,0.01681731,115370.0,115360.0,3.4880037]
[1757977876559,0.01681731,115370.0,115360.0,3.37904719]
[1757977877568,0.01681731,115370.0,115360.0,3.53430831]
[1757977878268,0.01681731,115370.0,115360.0,3.37904719]
[1757977879071,0.01681731,115370.0,115360.0,3.53430831]
[1757977881271,0.01681731,115370.0,115360.0,2.74918831]
[1757977881673,0.01681731,115370.0,115360.0,3.53418831]
[1757977889974,0.01681731,115370.0,115360.0,3.30685423]
[1757977903298,0.01681731,115370.0,115360.0,2.22985333]
[1757977903499,0.01681731,115370.0,115360.0,3.30677423]
[1757977904502,0.01681731,115370.0,115360.0,4.44677423]
[1757977910001,0.01681731,115370.0,115360.0,2.52185423]
[1757977910401,0.01681731,115370.0,115360.0,4.29151311]
[1757977910705,0.01681731,115370.0,115360.0,3.15151311]
[1757977911002,0.01681731,115370.0,115360.0,4.29151311]
[1757977911201,0.01681731,115370.0,115360.0,3.99951221]
[1757977911398,0.01681731,115370.0,115360.0,4.29151311]
[1757977912707,0.01681731,115370.0,115360.0,3.99951221]
[1757977912906,0.01681731,115370.0,115360.0,4.29151311]
[1757977913401,0.01681731,115370.0,115360.0,4.40068317]
[1757977914903,0.01681731,115370.0,115360.0,4.69268407]
[1757977917609,0.01681731,115370.0,115360.0,4.40068317]
[1757977923412,0.01681731,115370.0,115360.0,4.29151311]
[1757977923915,0.01681731,115370.0,115360.0,4.4006814]
[1757977924313,0.01681731,115370.0,115360.0,4.29151311]
[1757977924514,0.01681731,115370.0,115360.0,4.40068202]
[1757977934724,0.01681731,115370.0,115360.0,4.29151311]
[1757977941824,0.01681731,115370.0,115360.0,4.44677423]
[1757977951734,0.01681731,115370.0,115360.0,4.67390813]
[1757977954246,0.01681731,115370.0,115360.0,4.78311708]
[1757977954844,0.01681731,115370.0,115360.0,4.62785596]
[1757977964147,0.01681731,115370.0,115360.0,4.5390658]
[1757977964348,0.01681731,115370.0,115360.0,4.69432692]
[1757977968152,0.01681731,115370.0,115360.0,4.69428692]
[1757977968453,0.01681731,115370.0,115360.0,3.90940692]
[1757977968654,0.01681731,115370.0,115360.0,4.69428692]
[1757977970856,0.01681731,115370.0,115360.0,4.5390258]
[1757977971357,0.01681731,115370.0,115360.0,3.7541458]
[1757977971561,0.01681731,115370.0,115360.0,4.5390258]
[1757977972363,0.01681731,115370.0,115360.0,4.69428692]
[1757977975764,0.01681731,115370.0,115360.0,4.69424692]
[1757977976464,0.01681731,115370.0,115360.0,3.90940692]
[1757977976668,0.01681731,115370.0,115360.0,4.69424692]
[1757977978965,0.01681731,115370.0,115360.0,4.5389858]
[1757977980463,0.01681731,115370.0,115360.0,3.90940692]
[1757977980762,0.01681731,115370.0,115360.0,4.69424692]
[1757977981171,0.01681731,115370.0,115360.0,4.5389858]
[1757977984965,0.01681731,115370.0,115360.0,2.3545784]
[1757977985172,0.01681731,115370.0,115360.0,3.1394184]
[1757977986668,0.01681731,115370.0,115360.0,2.4637874]
[1757977986971,0.01681731,115370.0,115360.0,3.2486274]
[1757977991676,0.01681731,115370.0,115360.0,3.5081948]
[1757977994573,0.01581731,115370.0,115360.0,4.0456477]
[1757977994771,0.01381731,115370.0,115360.0,4.0456477]
[1757977994964,0.003,115370.0,115360.0,4.0456477]
[1757977995167,0.01375,115370.0,115360.0,4.0456477]
[1757977996484,0.01375,115370.0,115360.0,4.0466477]
[1757977996777,0.01375,115370.0,115360.0,3.9599858]
[1757977998177,0.01375,115370.0,115360.0,4.11524692]
[1757977999680,0.01375,115370.0,115360.0,3.9599858]
[1757978001679,0.01375,115370.0,115360.0,3.1751458]
[1757978001880,0.01375,115370.0,115360.0,3.3999458]
[1757978004683,0.01375,115370.0,115360.0,3.55520692]
[1757978007184,0.01375,115370.0,115360.0,3.66431305]
[1757978007883,0.01375,115370.0,115360.0,3.50905193]
[1757978008385,0.01375,115370.0,115360.0,2.72425193]
[1757978008684,0.01375,115370.0,115360.0,3.50901193]
[1757978013791,0.01375,115370.0,115360.0,3.57388377]
[1757978017193,0.01375,115370.0,115360.0,3.46477764]
[1757978017391,0.01375,115370.0,115360.0,3.62003876]
[1757978044614,0.01375,115370.0,115360.0,2.83527876]
[1757978044815,0.01375,115370.0,115360.0,3.61983876]
[1757978046014,0.01375,115370.0,115360.0,4.75983876]
[1757978047317,0.01375,115370.0,115360.0,3.97527876]
[1757978047517,0.01375,115370.0,115360.0,4.75983876]
[1757978055321,0.01375,115370.0,115360.0,4.60457764]
[1757978061632,0.01375,115370.0,115360.0,4.75983876]
[1757978073745,0.01375,115370.0,115360.0,4.6949209]
[1757978076938,0.01375,115370.0,115360.0,3.9103609]
[1757978077139,0.01375,115370.0,115360.0,4.6947209]
[1757978084151,0.01375,115370.0,115360.0,4.69473364]
[1757978103967,0.01375,115370.0,115360.0,5.21473364]
[1757978104170,0.01385,115380.0,115360.0,5.55139574]
[1757978104468,0.01334,115380.0,115370.0,0.25954439]
[1757978104668,0.25214901,115430.0,115370.0,1.20619899]
[1757978104868,0.01334,115390.0,115380.0,0.91346558]
[1757978105068,0.01334,115390.0,115380.0,2.38346558]
[1757978105272,0.01334,115390.0,115380.0,2.38340491]
[1757978106171,0.01334,115390.0,115380.0,2.6439493]
[1757978106172,0.01434,115390.0,115380.0,2.6439493]
[1757978106373,0.01434,115390.0,115380.0,3.14449369]
[1757978106668,0.01434,115390.0,115380.0,2.8849493]
[1757978107671,0.01434,115390.0,115380.0,3.1649493]
[1757978110370,0.01434,115390.0,115380.0,3.51114079]
[1757978110572,0.01434,115390.0,115380.0,3.40205057]
[1757978110874,0.01010365,115420.0,115380.0,3.40205057]
[1757978111074,0.01010365,115420.0,115410.0,0.25954439]
[1757978111075,0.03331365,115420.0,115410.0,0.25954439]
[1757978111272,0.03331365,115420.0,115410.0,1.35366439]
[1757978111781,0.03331365,115420.0,115410.0,1.3621895]
[1757978112274,0.03331365,115420.0,115410.0,1.3621495]
[1757978112477,0.03831365,115420.0,115410.0,1.3631495]
[1757978113076,0.04131365,115420.0,115410.0,1.3631495]
[1757978116174,0.04131365,115420.0,115410.0,1.4131495]
[1757978116478,0.04131365,115420.0,115410.0,1.43196867]
[1757978117681,0.03831365,115420.0,115410.0,1.43196867]
[1757978118273,0.03631365,115420.0,115410.0,1.43196867]
[1757978120178,0.03631365,115420.0,115410.0,0.64788867]
[1757978120382,0.03631365,115420.0,115410.0,1.43184867]
[1757978122582,0.03631365,115420.0,115410.0,0.64788867]
[1757978122787,0.03631365,115420.0,115410.0,1.43180867]
[1757978123482,0.03631365,115420.0,115410.0,0.64788867]
[1757978123681,0.03631365,115420.0,115410.0,1.43180867]
[1757978124078,0.03631365,115420.0,115410.0,0.64788867]
[1757978124584,0.03631365,115420.0,115410.0,1.43176867]
[1757978128288,0.03631365,115420.0,115410.0,0.64788867]
[1757978128479,0.03631365,115420.0,115410.0,1.43172867]
[1757978133791,0.03631365,115420.0,115410.0,1.75584952]
[1757978136692,0.03631365,115420.0,115410.0,0.97200952]
[1757978136894,0.57814627,115420.0,115410.0,0.37981917]
[1757978137099,0.57814627,115420.0,115410.0,1.16361917]
[1757978137288,0.57814627,115420.0,115410.0,1.45545179]
[1757978137488,0.57814627,115420.0,115410.0,0.06981917]
[1757978137793,0.57814627,115420.0,115410.0,0.85361917]
[1757978138093,0.57814627,115420.0,115410.0,0.7848]
[1757978138492,0.57814627,115420.0,115410.0,0.001]
[1757978138692,0.57814627,115420.0,115410.0,0.7848]
[1757978139389,0.32814627,115420.0,115410.0,0.7848]
[1757978139893,0.32814627,115420.0,115410.0,0.001]
[1757978140094,0.32814627,115420.0,115410.0,0.7848]
[1757978140894,0.03631365,115420.0,115410.0,0.7848]
[1757978141095,0.32814627,115420.0,115410.0,1.07663262]
[1757978143696,0.32814627,115420.0,115410.0,1.38663262]
[1757978144400,0.32814627,115420.0,115410.0,1.37663262]
[1757978149603,0.03631365,115420.0,115410.0,1.37663262]
[1757978149902,0.32814627,115420.0,115410.0,1.37663262]
[1757978152405,0.32814627,115420.0,115410.0,1.0848]
[1757978152705,0.32814627,115420.0,115410.0,1.37663262]
[1757978153909,0.32814627,115420.0,115410.0,0.301]
[1757978154101,0.32814627,115420.0,115410.0,1.08488]
[1757978154408,0.32814627,115420.0,115410.0,0.78488]
[1757978154909,0.33691679,115420.0,115410.0,0.78488]
[1757978155807,0.33691679,115420.0,115410.0,0.001]
[1757978156009,0.33691679,115420.0,115410.0,0.78488]
[1757978157010,0.04508417,115420.0,115410.0,0.78488]
[1757978157210,0.32814627,115420.0,115410.0,0.78488]
[1757978159010,0.33696976,115420.0,115410.0,0.78488]
[1757978161113,0.32814627,115420.0,115410.0,0.78488]
[1757978164618,0.86997889,115420.0,115410.0,0.001]
[1757978164914,0.03649,115400.0,115380.0,1.97582731]
[1757978165121,0.30543262,115390.0,115380.0,2.31582731]
[1757978165314,0.0136,115390.0,115380.0,2.31582731]
[1757978165712,0.30543262,115390.0,115380.0,2.32452091]
[1757978165907,0.30543262,115390.0,115380.0,3.10864091]
[1757978166112,0.30543262,115390.0,115380.0,3.11064091]
[1757978166312,0.30643262,115390.0,115380.0,3.11364091]
[1757978166720,0.0146,115390.0,115380.0,3.11164091]
[1757978166928,0.0146,115390.0,115380.0,3.11364091]
[1757978167429,0.0146,115390.0,115380.0,3.18240867]
[1757978167631,0.0146,115390.0,115380.0,3.18236867]
[1757978168827,0.0146,115390.0,115380.0,3.17936867]
[1757978169020,0.30743262,115390.0,115380.0,3.18036867]
[1757978169223,0.30743262,115390.0,115380.0,3.17936867]
[1757978169628,0.30743262,115390.0,115380.0,1.73464776]
[1757978169828,0.30743262,115390.0,115380.0,2.44996]
[1757978170333,0.30743262,115390.0,115380.0,2.64996]
[1757978170526,0.30743262,115390.0,115380.0,2.44996]
[1757978173932,0.30743262,115390.0,115380.0,3.04179262]
[1757978174121,0.0156,115390.0,115380.0,3.04179262]
[1757978174325,0.30743262,115390.0,115380.0,3.04179262]
[1757978175035,0.0156,115390.0,115380.0,3.04179262]
[1757978175430,0.30743262,115390.0,115380.0,3.04179262]
[1757978183938,0.0156,115390.0,115380.0,3.33362524]
[1757978184146,0.0156,115390.0,115380.0,3.58362524]
[1757978193049,0.0156,115390.0,115380.0,1.91974524]
[1757978195944,0.0156,115390.0,115380.0,1.59563706]
[1757978196441,0.03711,115390.0,115380.0,0.252]
[1757978196849,0.03711,115390.0,115380.0,1.03608]
[1757978197745,0.03711,115390.0,115380.0,1.29563706]
[1757978199250,0.03711,115390.0,115380.0,1.04563706]
[1757978201946,0.03711,115390.0,115380.0,1.24563706]
[1757978207865,0.0156,115390.0,115380.0,1.24563706]
[1757978208060,0.002,115390.0,115380.0,1.49563706]
[1757978208964,0.002,115390.0,115380.0,1.60460615]
[1757978210455,0.002,115390.0,115380.0,1.49563706]
[1757978211166,0.002,115390.0,115380.0,1.23608]
[1757978211459,0.002,115390.0,115380.0,1.49563706]
[1757978214462,0.01567,115390.0,115380.0,1.49563706]
[1757978214657,0.01567,115390.0,115380.0,0.71155706]
[1757978214851,0.01567,115390.0,115380.0,1.49555706]
[1757978215558,0.03667,115390.0,115380.0,0.71155706]
[1757978215760,0.03667,115390.0,115380.0,1.49555706]
[1757978217660,0.03667,115390.0,115380.0,1.236]
[1757978217863,0.03667,115390.0,115380.0,1.49555706]
[1757978218456,0.03667,115390.0,115380.0,0.71155706]
[1757978218655,0.03667,115390.0,115380.0,1.49555706]
[1757978219559,0.03667,115390.0,115380.0,0.71155706]
[1757978219764,0.03667,115390.0,115380.0,1.49555706]
[1757978220264,0.01567,115390.0,115380.0,1.49555706]
[1757978220452,0.03889,115390.0,115380.0,1.236]
[1757978220657,0.03889,115390.0,115380.0,1.49555706]
[1757978223264,0.01567,115390.0,115380.0,1.49555706]
[1757978223568,0.002,115390.0,115380.0,1.24555706]
[1757978229869,0.002,115390.0,115380.0,1.35452615]
[1757978234978,0.002,115390.0,115380.0,1.24555706]
[1757978236285,0.002,115390.0,115380.0,2.90963706]
[1757978247893,0.002,115390.0,115380.0,2.99628416]
[1757978248192,0.002,115390.0,115380.0,3.35533389]
[1757978249992,0.002,115390.0,115380.0,3.24628416]
[1757978255896,0.002,115390.0,115380.0,3.86232921]
[1757978259297,0.002,115390.0,115380.0,3.61232921]
[1757978259603,0.0001,115400.0,115380.0,3.61232921]
[1757978259790,0.0001,115400.0,115390.0,0.58373474]
[1757978259991,0.0001,115410.0,115390.0,0.90422258]
[1757978260295,0.0001,115410.0,115400.0,1.47664912]
[1757978260493,0.01020365,115420.0,115400.0,1.67761474]
[1757978260701,0.03144365,115420.0,115410.0,0.58373474]
[1757978260908,0.03134365,115420.0,115410.0,0.91373474]
[1757978261497,0.01010365,115420.0,115410.0,0.98325377]
[1757978261701,0.26010365,115420.0,115410.0,0.98325377]
[1757978262001,0.26510365,115420.0,115410.0,0.98425377]
[1757978262202,0.26510365,115420.0,115410.0,1.09328815]
[1757978263303,0.26610365,115420.0,115410.0,1.09328815]
[1757978263494,0.26110365,115420.0,115410.0,1.09228815]
[1757978263802,0.26310365,115420.0,115410.0,1.09228815]
[1757978264604,0.26310365,115420.0,115410.0,0.99184842]
[1757978265704,0.26310365,115420.0,115410.0,1.1008828]
[1757978270507,0.26310365,115420.0,115410.0,1.8847228]
[1757978271306,0.26310365,115420.0,115410.0,1.1008828]
[1757978271701,0.26310365,115420.0,115410.0,1.8847228]
[1757978272008,0.26310365,115420.0,115410.0,1.1008828]
[1757978272306,0.26310365,115420.0,115410.0,1.8846828]
[1757978272709,0.26310365,115420.0,115410.0,1.1008828]
[1757978273306,0.26310365,115420.0,115410.0,1.8846828]
[1757978273807,0.26310365,115420.0,115410.0,1.1008828]
[1757978274007,0.26310365,115420.0,115410.0,1.8846828]
[1757978279414,0.26310365,115420.0,115410.0,1.1008828]
[1757978279615,0.26310365,115420.0,115410.0,1.8846828]
[1757978285213,0.01310365,115420.0,115410.0,1.8846828]
[1757978287317,0.01210365,115420.0,115410.0,1.8846828]
[1757978291123,0.002,115420.0,115410.0,1.8846828]
[1757978291818,0.002,115420.0,115410.0,1.88466125]
[1757978293425,0.001,115420.0,115410.0,1.88566125]
[1757978296325,0.001,115420.0,115410.0,2.51415322]
[1757978296627,0.0001,115430.0,115410.0,2.51414682]
[1757978296826,0.0001,115430.0,115420.0,0.69264438]
[1757978297026,0.30113102,115470.0,115430.0,0.02144]
[1757978297230,0.02106,115450.0,115440.0,1.07558737]
[1757978297427,0.02106,115450.0,115440.0,1.38558737]
[1757978297621,0.27106,115450.0,115440.0,1.38558737]
[1757978298330,0.27106,115450.0,115440.0,1.67745474]
[1757978299628,0.27306,115450.0,115440.0,1.68887474]
[1757978299827,0.27706,115450.0,115440.0,1.68987474]
[1757978300626,0.27306,115450.0,115440.0,1.68887474]
[1757978300824,0.27506,115450.0,115440.0,1.68887474]
[1757978309629,0.27506,115450.0,115440.0,0.92686474]
[1757978309933,0.27506,115450.0,115440.0,1.71046474]
[1757978310834,0.27506,115450.0,115440.0,0.92686474]
[1757978311036,0.27506,115450.0,115440.0,1.71046474]
[1757978312831,0.27506,115450.0,115440.0,0.92686474]
[1757978313144,0.28794,115450.0,115440.0,1.53900474]
[1757978313433,0.28794,115450.0,115440.0,1.67900474]
[1757978315536,0.28794,115450.0,115440.0,0.89544474]
[1757978315738,0.28794,115450.0,115440.0,1.67900474]
[1757978316036,0.28794,115450.0,115440.0,1.35457742]
[1757978318534,0.28794,115450.0,115440.0,0.57101742]
[1757978318735,0.28794,115450.0,115440.0,1.35453742]
[1757978319336,0.03794,115450.0,115440.0,0.57101742]
[1757978319539,0.03794,115450.0,115440.0,1.35533742]
[1757978321138,0.03794,115450.0,115440.0,1.35589742]
[1757978325148,0.03794,115450.0,115440.0,1.09659]
[1757978325355,0.03794,115450.0,115440.0,1.35589742]
[1757978329953,0.03794,115450.0,115440.0,1.46480706]
[1757978330956,0.03794,115450.0,115440.0,1.20549964]
[1757978331160,0.03794,115450.0,115440.0,1.46480706]
[1757978331557,0.03794,115450.0,115440.0,1.20549964]
[1757978331758,0.03794,115450.0,115440.0,1.46480706]
[1757978338356,0.02506,115450.0,115440.0,1.36731742]
[1757978338963,0.02506,115450.0,115440.0,1.36683742]
[1757978340766,0.03839,115450.0,115440.0,1.35541742]
[1757978342659,0.03839,115450.0,115440.0,1.09611]
[1757978342860,0.03839,115450.0,115440.0,1.35541742]
[1757978346268,0.03839,115450.0,115440.0,1.36683742]
[1757978346469,0.02506,115450.0,115440.0,1.36683742]
[1757978348070,0.004,115450.0,115440.0,1.36683742]
[1757978350775,0.01733,115450.0,115440.0,1.36683742]
[1757978350973,0.01733,115450.0,115440.0,0.58243742]
[1757978351171,0.03944,115450.0,115440.0,1.35629742]
[1757978351772,0.03944,115450.0,115440.0,0.57101742]
[1757978352075,0.03944,115450.0,115440.0,1.09695]
[1757978352278,0.03944,115450.0,115440.0,1.35625742]
[1757978355670,0.03944,115450.0,115440.0,0.57101742]
[1757978355865,0.03944,115450.0,115440.0,1.35725742]
[1757978356374,0.03944,115450.0,115440.0,1.01787]
[1757978356573,0.29874742,115450.0,115440.0,0.78612]
[1757978356777,0.03944,115450.0,115440.0,0.80834]
[1757978360678,0.03944,115450.0,115440.0,1.36764742]
[1757978361174,0.03944,115450.0,115440.0,1.10834]
[1757978362877,0.03944,115450.0,115440.0,1.36764742]
[1757978365680,0.03944,115450.0,115440.0,1.10834]
[1757978365980,0.03944,115450.0,115440.0,1.10842]
[1757978367180,0.29874742,115450.0,115440.0,1.10842]
[1757978368081,0.03944,115450.0,115440.0,1.00842]
[1757978368580,0.03944,115450.0,115440.0,0.9862]
[1757978370875,0.03944,115450.0,115440.0,0.2]
[1757978371070,0.03407,115440.0,115430.0,0.28099742]
[1757978371274,0.03407,115440.0,115430.0,1.28707742]
[1757978371586,0.03407,115440.0,115430.0,0.80777]
[1757978372682,0.03507,115440.0,115430.0,0.80777]
[1757978373983,0.03707,115440.0,115430.0,0.80777]
[1757978374182,0.03707,115440.0,115430.0,0.02169]
[1757978374380,0.03707,115440.0,115430.0,0.80797]
[1757978377794,0.3289087,115440.0,115430.0,1.0998087]
[1757978380791,0.3289087,115440.0,115430.0,0.3135287]
[1757978380988,0.3289087,115440.0,115430.0,1.0995287]
[1757978381690,0.3289087,115440.0,115430.0,1.3995287]
[1757978384293,0.3289087,115440.0,115430.0,1.10769]
[1757978384591,0.3289087,115440.0,115430.0,1.3995287]
[1757978386983,0.03707,115440.0,115430.0,1.3995287]
[1757978387189,0.03707,115440.0,115430.0,1.3895287]
[1757978389782,0.03707,115440.0,115430.0,1.09769]
[1757978389990,0.03707,115440.0,115430.0,0.80769]
[1757978390188,0.3289087,115440.0,115430.0,1.0995287]
[1757978390692,0.03707,115440.0,115430.0,1.0995287]
[1757978391491,0.03707,115440.0,115430.0,1.3095287]
[1757978392095,0.03707,115440.0,115430.0,1.01769]
[1757978392288,0.03707,115440.0,115430.0,1.3095287]
[1757978405496,0.02415,115440.0,115430.0,1.3163587]
[1757978405690,0.003,115440.0,115430.0,1.3163587]
[1757978410994,0.003,115440.0,115430.0,1.3095287]
[1757978411200,0.01613,115440.0,115430.0,1.3095287]
[1757978412299,0.03836,115440.0,115430.0,0.5235287]
[1757978412504,0.03836,115440.0,115430.0,1.3201287]
[1757978416703,0.03836,115440.0,115430.0,1.1001287]
[1757978416903,0.03836,115440.0,115430.0,0.80829]
[1757978417103,0.03836,115440.0,115430.0,1.1001287]
[1757978417303,0.03836,115440.0,115430.0,1.2798087]
[1757978417705,0.03836,115440.0,115430.0,0.4935287]
[1757978418202,0.03836,115440.0,115430.0,1.2797287]
[1757978419505,0.03836,115440.0,115430.0,1.2865587]
[1757978420405,0.03836,115440.0,115430.0,1.1065587]
[1757978420801,0.03836,115440.0,115430.0,1.4065587]
[1757978422706,0.03836,115440.0,115430.0,1.1965587]
[1757978423404,0.03836,115440.0,115430.0,1.4365587]
[1757978423604,0.02523,115440.0,115430.0,1.4365587]
[1757978425003,0.003,115440.0,115430.0,1.4365587]
[1757978426505,0.003,115440.0,115430.0,1.9783974]
[1757978427008,0.003,115440.0,115430.0,2.08730704]
[1757978428604,0.003,115440.0,115430.0,1.9783974]
[1757978430408,0.003,115440.0,115430.0,1.1921974]
[1757978430602,0.003,115440.0,115430.0,1.9785574]
[1757978432610,0.003,115440.0,115430.0,1.7285574]
[1757978433000,0.003,115440.0,115430.0,1.83746704]
[1757978437008,0.003,115440.0,115430.0,1.38771744]
[1757978437206,0.0001,115450.0,115430.0,2.45375744]
[1757978437416,0.0001,115450.0,115440.0,1.4867303]
[1757978437613,0.0001,115460.0,115450.0,0.03459]
[1757978437806,0.02233,115470.0,115460.0,0.03107]
[1757978438007,0.02223,115470.0,115460.0,0.6429087]
[1757978439707,0.02223,115470.0,115460.0,0.61029828]
[1757978439914,0.01323,115480.0,115460.0,0.61029828]
[1757978440100,0.03546,115480.0,115470.0,1.06713828]
[1757978440413,0.03536,115480.0,115470.0,1.06713828]
[1757978441414,0.04036,115480.0,115470.0,1.06713828]
[1757978441714,0.04336,115480.0,115470.0,0.80791]
[1757978443117,0.04336,115480.0,115470.0,1.06713828]
[1757978444521,0.04336,115480.0,115470.0,1.33713828]
[1757978445018,0.04336,115480.0,115470.0,1.06713828]
[1757978446122,0.03023,115480.0,115470.0,1.37396828]
[1757978446726,0.03023,115480.0,115470.0,0.58792828]
[1757978446924,0.04343,115480.0,115470.0,1.37396828]
[1757978447128,0.04343,115480.0,115470.0,1.06713828]
[1757978447421,0.04343,115480.0,115470.0,0.28109828]
[1757978447628,0.04343,115480.0,115470.0,0.02187]
[1757978447822,0.55265828,115480.0,115470.0,0.02187]
[1757978448222,0.55265828,115480.0,115470.0,0.39547]
[1757978448428,0.55265828,115480.0,115470.0,0.77055]
[1757978449018,0.55265828,115480.0,115470.0,0.80791]
[1757978449224,0.29343,115480.0,115470.0,0.80791]
[1757978451730,0.29343,115480.0,115470.0,0.29187]
[1757978452029,0.29343,115480.0,115470.0,1.00015]
[1757978453220,0.29343,115480.0,115470.0,0.29187]
[1757978453426,0.29343,115480.0,115470.0,1.07771]
[1757978457432,0.30265828,115480.0,115450.0,0.28073424]
[1757978457630,0.01333,115460.0,115450.0,0.02328]
[1757978457826,0.03651,115460.0,115450.0,0.56736]
[1757978458033,0.03651,115460.0,115450.0,0.84736]
[1757978459933,0.03951,115460.0,115450.0,0.84736]
[1757978460635,0.04151,115460.0,115450.0,0.84736]
[1757978461234,0.04151,115460.0,115450.0,1.10658828]
[1757978464338,0.04151,115460.0,115450.0,0.56250828]
[1757978464634,0.04151,115460.0,115450.0,1.089]
[1757978464835,0.04151,115460.0,115450.0,0.809]
[1757978465036,0.04151,115460.0,115450.0,1.059]
[1757978465729,0.04151,115460.0,115450.0,0.27328]
[1757978465935,0.03651,115440.0,115430.0,0.28250828]
[1757978466130,0.03651,115440.0,115430.0,0.20328]
[1757978466331,0.03651,115440.0,115430.0,0.80928]
[1757978466638,0.03651,115440.0,115430.0,0.02328]
[1757978467138,0.03651,115440.0,115430.0,0.80948]
[1757978467530,0.03751,115440.0,115430.0,0.80948]
[1757978467937,0.03751,115440.0,115430.0,0.02328]
[1757978468136,0.03851,115440.0,115430.0,0.80964]
[1757978468932,0.03951,115440.0,115430.0,0.80964]
[1757978475345,0.29873828,115440.0,115430.0,0.80964]
[1757978475739,0.03951,115440.0,115430.0,0.80964]
[1757978479748,0.29873828,115440.0,115430.0,0.80964]
[1757978480246,0.03951,115440.0,115430.0,0.02328]
[1757978480438,0.03951,115440.0,115430.0,0.80996]
[1757978486151,0.03951,115440.0,115430.0,1.06918828]
[1757978487950,0.03951,115440.0,115430.0,1.37918828]
[1757978488146,0.003,115440.0,115430.0,1.18838828]
[1757978488345,0.003,115440.0,115430.0,1.19838828]
[1757978488549,0.003,115440.0,115430.0,1.61838828]
[1757978488755,0.003,115440.0,115430.0,1.45838828]
[1757978488952,0.01569,115440.0,115430.0,1.33006828]
[1757978489153,0.01569,115440.0,115430.0,1.44006828]
[1757978489854,0.01569,115440.0,115430.0,1.43086828]
[1757978490056,0.01569,115440.0,115430.0,1.56086828]
[1757978490952,0.01569,115440.0,115430.0,1.30164]
[1757978491152,0.01569,115440.0,115430.0,1.56086828]
[1757978492957,0.01569,115440.0,115430.0,1.31086828]
[1757978496359,0.003,115440.0,115430.0,1.32006828]
[1757978496666,0.01569,115440.0,115430.0,1.31086828]
[1757978499862,0.01569,115440.0,115430.0,1.3434246]
[1757978506558,0.003,115440.0,115430.0,1.3526246]
[1757978508466,0.003,115440.0,115430.0,1.3726246]
[1757978512466,0.003,115440.0,115430.0,1.08084]
[1757978512670,0.003,115440.0,115430.0,1.3726246]
[1757978519185,0.003,115440.0,115430.0,0.5842646]
[1757978519567,0.003,115440.0,115430.0,1.3733846]
[1757978520378,0.003,115440.0,115430.0,1.1133846]
[1757978520677,0.003,115440.0,115430.0,1.4333846]
[1757978521179,0.003,115440.0,115430.0,1.9751692]
[1757978521574,0.003,115440.0,115430.0,2.08407884]
[1757978521775,0.003,115440.0,115430.0,1.58692034]
[1757978522078,0.003,115440.0,115430.0,2.17048954]
[1757978522577,0.002,115440.0,115430.0,2.17048954]
[1757978523982,0.001,115440.0,115430.0,2.17048954]
[1757978524479,0.001,115440.0,115430.0,2.0615799]
[1757978525081,0.001,115440.0,115430.0,1.2726599]
[1757978525275,0.001,115440.0,115430.0,2.0614999]
[1757978526685,0.0001,115450.0,115440.0,0.02926]
[1757978526880,0.0001,115460.0,115450.0,0.03456]
[1757978527077,0.0001,115470.0,115450.0,1.4049446]
[1757978527277,0.02261,115470.0,115460.0,0.3136246]
[1757978527478,0.27251,115470.0,115460.0,0.3136246]
[1757978527682,0.02251,115470.0,115460.0,0.3136246]
[1757978529078,0.02251,115470.0,115460.0,0.6104546]
[1757978529383,0.02651,115470.0,115460.0,0.6104546]
[1757978530485,0.02951,115470.0,115460.0,0.6104546]
[1757978530882,0.02951,115470.0,115460.0,0.3204546]
[1757978531183,0.02951,115470.0,115460.0,1.1089746]
[1757978531384,0.02951,115470.0,115460.0,1.1021046]
[1757978531385,0.04339,115470.0,115460.0,1.1021046]
[1757978531684,0.3351746,115470.0,115460.0,1.1020646]
[1757978532374,0.3351746,115470.0,115460.0,0.81028]
[1757978532578,0.3351746,115470.0,115460.0,1.1020646]
[1757978532778,0.04339,115470.0,115460.0,1.1020646]
[1757978532981,0.3351746,115470.0,115460.0,1.1020646]
[1757978533286,0.3351746,115470.0,115460.0,1.2120646]
[1757978534485,0.3351746,115470.0,115460.0,0.4336246]
[1757978534685,0.3351746,115470.0,115460.0,1.1019446]
[1757978535688,0.3351746,115470.0,115460.0,1.11047338]
[1757978535890,0.3351746,115470.0,115460.0,1.23039338]
[1757978536388,0.04339,115470.0,115460.0,1.23039338]
[1757978536588,0.3351746,115470.0,115460.0,1.23039338]
[1757978536984,0.3351746,115470.0,115460.0,0.3136246]
[1757978537276,0.3351746,115470.0,115460.0,1.1841046]
[1757978538890,0.3351746,115470.0,115460.0,1.19284515]
[1757978539788,0.04339,115470.0,115460.0,1.19284515]
[1757978540879,0.02951,115470.0,115460.0,1.19967515]
[1757978541984,0.02951,115470.0,115460.0,1.05967515]
[1757978542183,0.02951,115470.0,115460.0,1.34967515]
[1757978544686,0.02951,115470.0,115460.0,1.05967515]
[1757978545087,0.02951,115470.0,115460.0,1.33967515]
[1757978559821,0.02951,115470.0,115460.0,1.30712978]
[1757978565118,0.007,115470.0,115460.0,1.30712978]
[1757978565526,0.007,115470.0,115460.0,1.55712978]
[1757978570827,0.01054933,115470.0,115460.0,1.55712978]
[1757978572721,0.01054933,115470.0,115460.0,1.61264978]
[1757978572921,0.01054933,115470.0,115460.0,0.82664978]
[1757978573123,0.01054933,115470.0,115460.0,1.61264978]
[1757978576130,0.03363933,115470.0,115460.0,0.82664978]
[1757978576334,0.03363933,115470.0,115460.0,1.61252978]